Cogmind - Beta 12 @@@ ROGUE MODE // 2024.02.24 @ 00:44:34 Player: ToasterKoishi Result: Destroyed by G-34 Mercenary with Small Laser Performance ------------- Evolutions (0) 0 Regions Visited (1) 200 Robots Destroyed (19) 95 Value Destroyed (385) 385 Prototype IDs (0) 0 Alien Tech Used (0) 0 Bonus (0) 0 TOTAL SCORE: 680 Bonus ------- None Cogmind --------- Core Integrity 0/250 Matter 265/300 Energy 262/265 System Corruption 0% Temperature Cool (18) Movement Treading (320) Ox2 Location -10/Materials Parts ------- > --- POWER (1) -------- Improved Ion Engine > --- PROPULSION (2) --- Light Treads Wheel > --- UTILITY (2) ------ High-capacity Storage Unit Structural Scanner > --- WEAPON (2) ------- Light Assault Rifle Light Cannon > --- INVENTORY (20) --- Improved Ion Engine Compact Wheel Flight Unit Flight Unit Flight Unit Flight Unit Small Storage Unit Medium Storage Unit High-capacity Storage Unit Medium Matter Pod (100) Signal Interpreter Improved Terrain Scanner Improved Terrain Scanner EM Shotgun EM Shotgun Small Laser Peak State ------------ > --- POWER ------------ Improved Ion Engine > --- PROPULSION ------- Light Treads Wheel > --- UTILITY ---------- High-capacity Storage Unit Structural Scanner > --- WEAPON ----------- EM Shotgun EM Shotgun > --- INVENTORY -------- Improved Ion Engine Compact Wheel Flight Unit Flight Unit Small Storage Unit Medium Storage Unit High-capacity Storage Unit Medium Matter Pod Improved Terrain Scanner Improved Terrain Scanner EM Shotgun EM Shotgun Light Assault Rifle [Rating: 12] Favorites ----------- Power Improved Ion Engine Engine Improved Ion Engine Propulsion Light Treads Treads Light Treads Wheel Compact Wheel Utility High-capacity Storage Unit Device Structural Scanner Storage High-capacity Storage Unit Weapon Light Assault Rifle Energy Gun EM Shotgun Ballistic Gun Light Assault Rifle Ballistic Cannon Light Cannon Special Weapon Mining Laser Build | -11 -10 ------- Run | Jun Mat Slots Evolved . | . . Power . | . . Propulsion . | . . Utility . | . . Weapon . | . . Parts Attached 23 | 6 17 Power 4 | 1 3 Engine 4 | 1 3 Core . | . . Reactor . | . . Propulsion 6 | 1 5 Treads 3 | . 3 Leg . | . . Wheel 3 | 1 2 Hover . | . . Flight . | . . Utility 5 | 2 3 Device 2 | 1 1 Storage 3 | 1 2 Processor . | . . Hackware . | . . Protection . | . . Artifact . | . . Weapon 8 | 2 6 Energy Gun 3 | . 3 Energy Cannon . | . . Ballistic Gun 3 | 2 1 Ballistic Cannon 1 | . 1 Launcher . | . . Special Weapon 1 | . 1 Impact Weapon . | . . Slashing Weapon . | . . Piercing Weapon . | . . Special Melee Weapon . | . . Unidentified Prototypes . | . . Parts Lost 9 | . 9 Power 2 | . 2 Propulsion 3 | . 3 Utility 1 | . 1 Weapon 3 | . 3 Highest Loss Streak 3 | . 3 To Critical Strikes . | . . Average Slot Usage (%) 90 | . 90 Engine 12 | . 12 Treads 13 | . 13 Wheel 14 | . 14 Device 12 | . 12 Storage 14 | . 14 Energy Gun 14 | . 14 Ballistic Gun 7 | . 7 Naked Turns . | . . Heaviest Build 54 | 13 54 Greatest Support 20 | 16 20 Greatest Overweight (x) 5 | . 5 Average Overweight (x) 2 | . 3 Largest Inventory Capacity 20 | 8 20 Average Capacity 16 | 7 18 Most Carried 18 | 6 18 Average Carried 9 | 3 9 Final Capacity 20 | 8 20 Final Carried 16 | 6 16 Class Distribution -------------------- 100% | Mutant Dominant Class ---------------- Mutant | -10/Materials Resources | -11 -10 ----------- Run | Jun Mat Matter Collected 569 | 282 287 Remotely . | . . Salvage Created 615 | 91 524 Parts 44 | 14 30 Haulers Intercepted . | . . Recyclers Shooed . | . . Parts Field Recycled . | . . Retrieved Matter . | . . Parts Self-Destructed . | . . Prevented . | . . Kills | -11 -10 ------- Run | Jun Mat Combat Hostiles Destroyed 13 | . 13 Guns 13 | . 13 Classes Destroyed 5 | 1 4 Tunneler 4 | 4 . Recycler 1 | . 1 Watcher 1 | . 1 Swarmer 5 | . 5 Grunt 8 | . 8 Best Kill Streak 5 | 2 5 Combat Bots Only 5 | . 5 Max Kills in Single Turn 2 | 1 2 Gunslinging 1 | . 1 Exploded . | . . Melee . | . . Uniques/NPCs Destroyed . | . . Combat | -11 -10 -------- Run | Jun Mat Damage Taken 1141 | . 1141 Core 257 | . 257 Absorbed by Shields . | . . Core Remaining (%) 100 | 100 . Volleys Fired 92 | 11 81 Largest 2 | 2 2 Hottest 90 | 40 90 Shots Fired 149 | 22 127 Gun 146 | 22 124 Cannon 3 | . 3 Launcher . | . . Special . | . . Kinetic 101 | 22 79 Thermal 32 | . 32 Explosive . | . . Electromagnetic 16 | . 16 Robot Hit Streak 14 | 5 14 Robot Miss Streak 4 | 4 4 Penetration Max . | . . Secondary Targets 2 | . 2 Max Gunslinging Chain 1 | . 1 Shots Hit Robots 107 | 15 92 Core Hits 38 | 6 32 Critical Kills . | . . Critical Parts Destroyed . | . . Critical Strikes . | . . Melee Attacks . | . . Impact . | . . Slashing . | . . Piercing . | . . Sneak Attacks . | . . Combat Hostiles . | . . Follow-up Attacks . | . . Damage Inflicted 1041 | 128 913 Guns 1008 | 128 880 Cannons 33 | . 33 Explosions . | . . Melee . | . . Ramming . | . . Kinetic 616 | 128 488 Thermal 273 | . 273 Explosive . | . . Electromagnetic 152 | . 152 Impact . | . . Slashing . | . . Piercing . | . . Highest Corruption . | . . Average Corruption . | . . Corruption Purged . | . . Corruption Blocked . | . . Overload Shots . | . . Overflow Damage . | . . Projectiles . | . . Explosions . | . . Melee . | . . Knockbacks . | . . Impact . | . . Kinetic . | . . Secondary . | . . Self-Inflicted Damage . | . . Shots . | . . Rammed . | . . Targets Rammed . | . . Kicked . | . . Crushed . | . . Highest Temperature 166 | . 166 Average Temperature 46 | . 46 Received Heat Transfer 477 | . 477 Siege Activations . | . . Robots Corrupted . | . . Combat Hostiles . | . . Parts Fried . | . . Impact Corruptions . | . . Robots Melted . | . . Combat Hostiles . | . . Parts Melted 2 | . 2 Heat Transferred 625 | . 625 Parts Sabotaged . | . . Parts Stolen . | . . Parts Stripped . | . . Power Chain Reactions . | . . Missiles Intercepted . | . . Alert | -11 -10 ------- Run | Jun Mat Peak Influence 205 | 20 205 Initial 13 | . 13 Average 54 | 7 60 Maximum Alert Level 1 | . 1 Low Security (%) 93 | 100 93 Level 1 6 | . 6 Level 2 . | . . Level 3 . | . . Level 4 . | . . Level 5 . | . . High Security . | . . Max Security . | . . Squads Dispatched 4 | . 4 Investigation 2 | . 2 Extermination . | . . Reinforcement 2 | . 2 Assault . | . . Garrison . | . . Intercept . | . . Searches Triggered . | . . Construction Impeded . | . . Haulers Reinforced . | . . Active Scanning Responses . | . . Cargo Convoy Interrupts . | . . Stealth | -11 -10 --------- Run | Jun Mat Distress Signals 2 | . 2 Communications Jammed . | . . Distress Signals . | . . Times Spotted 22 | . 22 Peak Tracking Total 5 | . 5 Tactical Retreats 3 | . 3 Traps | -11 -10 ------- Run | Jun Mat Traps Triggered 2 | . 2 Indirectly . | . . Trap Hack Attempts . | . . Triggered . | . . Disarmed . | . . Reprogrammed . | . . Reused . | . . Traps Extracted . | . . Installed . | . . Triggered . | . . Machines | -11 -10 ---------- Run | Jun Mat Machines Disabled . | . . Max in Single Turn . | . . Machines Repaired . | . . Machines Sabotaged . | . . Overloaded Fab Kills . | . . Hacking | -11 -10 --------- Run | Jun Mat Machines Accessed 4 | . 4 Terminals 4 | . 4 Fabricators . | . . Repair Stations . | . . Recycling Units . | . . Scanalyzers . | . . Garrison Access . | . . Total Hacks 11 | . 11 Successful 1 | . 1 Failed 10 | . 10 Catastrophic 3 | . 3 Database Lockouts . | . . Manual 8 | . 8 Terminals 11 | . 11 Fabricators . | . . Repair Stations . | . . Recycling Units . | . . Scanalyzers . | . . Garrison Access . | . . Terminal Hacks 1 | . 1 Unreport Threat 1 | . 1 Fabricator Hacks . | . . Repair Station Hacks . | . . Recycling Unit Hacks . | . . Scanalyzer . | . . Garrison Access Hacks . | . . Unauthorized Hacks . | . . Terminals . | . . Fabricators . | . . Repair Stations . | . . Recycling Units . | . . Scanalyzers . | . . Garrison Access . | . . Data Cores Recovered . | . . Used . | . . Hacking Detections 4 | . 4 Full Trace Events . | . . Feedback Events . | . . Feedback Blocked . | . . Robot Schematics Acquired . | . . Robots Built . | . . Authchips . | . . Time . | . . Total Robot Build Rating . | . . Part Schematics Acquired . | . . Parts Built . | . . Authchips . | . . Time . | . . Total Part Build Rating . | . . Parts Repaired . | . . Time . | . . Parts Recycled . | . . Recycled Matter . | . . Retrieved Matter . | . . Retrieved Components . | . . Parts Scanalyzed . | . . Part Schematics Acquired . | . . Parts Damaged . | . . Bothacking | -11 -10 ------------ Run | Jun Mat Used RIF Installer . | . . Robots Hacked . | . . Non-combat . | . . Combat . | . . Robot Hacks Applied . | . . Relay Couplers Released . | . . Fabnet Peak Effective % . | . . Robots Rewired . | . . Allies Hacked . | . . Hacks Repelled . | . . Allies | -11 -10 -------- Run | Jun Mat Total Allies . | . . Largest Group . | . . Highest-Rated Group . | . . Highest-Rated Ally . | . . Total Orders . | . . Ally Attacks . | . . Total Damage . | . . Kills . | . . Allies Corrupted . | . . Allies Melted . | . . Intel | -11 -10 ------- Run | Jun Mat Robot Analysis Total . | . . Derelict Logs Recovered . | . . Drone Launches . | . . Drone Recoveries . | . . Exploration | -11 -10 ------------- Run | Jun Mat Turns Passed 1026 | 125 901 Spaces Moved 515 | 82 433 Core 1 | 1 . Treads 42 | . 42 Legs . | . . Wheels 472 | 81 391 Hover . | . . Flight . | . . Fastest Speed 50 | 50 100 Average Speed 138 | 99 146 Slowest Speed 240 | 100 240 Overloaded Moves . | . . Propulsion Burnouts . | . . Robots Hopped . | . . Cave-ins Triggered . | . . Exploration Rate (%) 31 | 5 57 Regions Visited 1 Branch Regions . Pre-discovered Areas . | . . Known Exits Taken . | . . Unknown Exits Taken 1 | 1 . Scrap Searched . | . . Spaces Dug . | . . Terrain Destroyed . | . . Melee . | . . Projectile . | . . AOE . | . . Terrain Rammed . | . . Walls Destroyed . | . . Machines Disabled . | . . Actions | -11 -10 --------- Run | Jun Mat Total 693 | 104 589 Wait 34 | . 34 Move 514 | 81 433 Hop . | . . Pick Up 23 | 6 17 Fast Attach 12 | 6 6 Attach 5 | . 5 Detach . | . . Swap 6 | . 6 Drop 7 | . 7 Fire 92 | 11 81 Melee . | . . Ram . | . . Kick . | . . Crush . | . . Escape Stasis . | . . Rewire . | . . Trap . | . . Miscellaneous . | . . Route ------- -11/Junkyard -10/Materials (discovered 2 exits: [*Mat x2]) History --------- Turn | Location | Event 34 | -11/Junkyard | Discovered new exit (range 15) 126 | -11/Junkyard | Entered Materials 322 | -10/Materials | Build established: Mutant 454 | -10/Materials | Core integrity fell below 50% 666 | -10/Materials | Lost 3 parts (1p1n1w) 758 | -10/Materials | Discovered new exit (range 12) 938 | -10/Materials | Discovered new exit (range 3) 1004 | -10/Materials | Core integrity fell below 20% 1027 | -10/Materials | Destroyed by G-34 Mercenary with Small Laser Last Messages --------------- 00798_ K-01 Serf collects debris. 00800_ Acquired Flight Unit. 00802_ K-01 Serf collects debris. 00803_ Acquired Flight Unit. 00803_ K-01 Serf collects debris. 00805_ Acquired Flight Unit. 00810_ K-01 Serf cleans the Processing Tank. 00867_ K-01 Serf cleans the Recycling Unit. 00880_ K-01 Serf cleans the Processing Tank. 00889_ Acquired Signal Interpreter. 00895_ Acquired Lgt. Cannon. 00921_ Connecting with Terminal... 00927_ Acquired Sml. Laser. 00938_ EXIT=FOUND 00992_ Triggered Alarm Trap. 00992_ An alarm sounds. 00992_ ALERT: Alarm triggered, dispatching investigation squad. 01003_ G-34 Mercenary destroyed. 01003_ Door malfunctions. 01018_ Dropped EM Shotgun. Map ----- +----------------------------------------------------+ | ##?#### ######## ########## ###?? | | ##?## ##########+#############+#####?? | | ##### ##?? | | #+########### ^ < ##?? | | ########"" ^^ ##?? | | ########"Y #########+######+#####?? | | ########"" """"" ####### # *##?? | | = ###### """"" ####### + ##?? | | ###### """"" ####### # " " ##?? | | ##??## % # + """" # "T" ##?? | | ##??## % # """ # """" # """ ##?? | | ==##??## !! # """ # """" # ##?? | | ==##??## !! + """ ################?? | | ######??## # ################?? | | ######??## # ##???????????????? | | ##??????## u # ##???????????????? | | ########## "u ########???????????????? | | ########## T ############???????????? | | " ############???????????? | | %% # ##???????????? | | % # ##???????????? | | #+##### ############# # ##???????????? | | %% # ############# # ##???????????? | | "" # ##????????? # # [ ##???????????? | | Y" # ##????????? # [# ##???????????? | | "" # ##????????? # [@# ##???????????? | | #% ##????????? + =g% ##???????????? | | # ##????????? # *#######+####???????????? | | # ##????????? # <%###### ???????????? | | +###### ##????????? # ?????????????????????? | | ##????????? ######?????????????????????? | | ##?????????#######?????????????????????? | | ##?????????????????????????????????????? | | !!##?????????????????????????????????????? | | " " ##?????????????????????????????????????? | | "R" ????????????????????????????????????? | | """ ??????????????????????????????????? | | #############+#+?????????????????????????????????? | | ?????????????????????????????????????????????????? | | ?????????????????????????????????????????????????? | | ?????????????????????????????????????????????????? | | ?????????????????????????????????????????????????? | | ?????????????????????????????????????????????????? | | ?????????????????????????????????????????????????? | | ?????????????????????????????????????????????????? | | | | | | | | | | | +----------------------------------------------------+ Best States ------------- Heat Dissipation 25 Energy Generation 12 Energy Capacity 265 Matter Stores 300 Matter Capacity 300 Sight Range 16 Terrain Scan Density 10 Evasion (%) 40 Recoil Reduction 1 Item Schematics ----------------- None Robot Schematics ------------------ None Fabricated ------------ Nothing Alien Tech Used ----------------- None Achievements -------------- None Challenges ------------ None Game ------ Seed CoolingTransmissionMallet Manual? 0 Play Time 00:13:34 Cumulative 43.9 hours Start 2024.02.24 @ 00:37:28 End 2024.02.24 @ 00:44:34 Sessions 1 Manual Loads 0 Difficulty Rogue Special Mode None Game No. 30 Rogue 30 Adventurer 0 Explorer 0 Win Type - Total 2 Types 1/0/1/0/0/0/0/0/0 Lore% 42 Gallery% 30 Achievement% 34 Wizard Run 0 Options --------- ASCII 0 Keyboard 0 Movement Mouse Keybinds 0 Fullscreen 2 Font 18/SmallcapsGlow Map View 112x50 Tactical HUD 1 Map Filters NONE Filters NONE Steam 1 RUN: 97b29bf4-adc3-409b-9ffe-846599e148ca